fUST/lending_fUST_20250603
["ID","MTS","AMOUNT","RATE_DAILY","PERIOD"]
[363826082,1748890240842,-543.81,0.00016712,2]
[363826083,1748890240852,-420.0,0.00016712,2]
[363826084,1748890240863,-390.3870201,0.00016712,2]
[363826085,1748890240873,-420.0,0.00016712,2]
[363826086,1748890240884,-420.0,0.00016712,2]
[363826087,1748890240894,-420.0,0.00016712,2]
[363826088,1748890240904,-420.0,0.00016712,2]
[363826089,1748890240914,-420.0,0.00016712,2]
[363826090,1748890240924,-168.56982998,0.00016712,2]
[363826091,1748890240933,-420.0,0.00016712,2]
[363826092,1748890240943,-420.0,0.00016712,2]
[363826093,1748890240952,-420.0,0.00016712,2]
[363826094,1748890240962,-420.0,0.00016712,2]
[363826095,1748890240971,-440.0,0.00016712,2]
[363826096,1748890240981,-440.0,0.00016712,2]
[363826097,1748890240990,-440.0,0.00016712,2]
[363826098,1748890241000,-460.0,0.00016712,2]
[363826099,1748890241018,-420.0,0.00016712,2]
[363826100,1748890241027,-420.0,0.00016712,2]
[363826101,1748890241038,-366.16807931,0.00016712,2]
[363826102,1748890241047,-420.0,0.00016712,2]
[363826103,1748890241059,-360.0,0.00016712,2]
[363826104,1748890241068,-440.0,0.00016712,2]
[363826105,1748890241078,-440.0,0.00016712,2]
[363826106,1748890241087,-420.0,0.00016712,2]
[363826107,1748890241096,-409.59138052,0.00016712,2]
[363826108,1748890241106,-420.0,0.00016712,2]
[363826109,1748890241116,-420.0,0.00016712,2]
[363826110,1748890241125,-420.0,0.00016712,2]
[363826111,1748890241135,-420.0,0.00016712,2]
[363826112,1748890241146,-420.0,0.00016712,2]
[363826113,1748890241155,-420.0,0.00016712,2]
[363826114,1748890241165,-420.0,0.00016712,2]
[363826115,1748890241175,-391.40508588,0.00016712,2]
[363826116,1748890241185,-420.0,0.00016712,2]
[363826117,1748890241195,-396.67448792,0.00016712,2]
[363826118,1748890241204,-420.0,0.00016712,2]
[363826119,1748890241214,-420.0,0.00016712,2]
[363826120,1748890241224,-420.0,0.00016712,2]
[363826121,1748890241233,-409.1624014,0.00016712,2]
[363826122,1748890241242,-440.0,0.00016712,2]
[363826123,1748890241252,-440.0,0.00016712,2]
[363826124,1748890241261,-455.12939596,0.00016712,2]
[363826125,1748890241271,-440.0,0.00016712,2]
[363826126,1748890241280,-440.0,0.00016712,2]
[363826127,1748890241291,-404.55494655,0.00016712,2]
[363826128,1748890241300,-421.42841871,0.00016712,2]
[363826129,1748890241310,-440.0,0.00016712,2]
[363826130,1748890241319,-420.0,0.00016712,2]
[363826131,1748890241329,-396.57314751,0.00016712,2]
[363826132,1748890241338,-420.0,0.00016712,2]
[363826133,1748890241348,-420.0,0.00016712,2]
[363826134,1748890241359,-440.0,0.00016712,2]
[363826135,1748890241368,-409.60711294,0.00016712,2]
[363826136,1748890241378,-501.59437136,0.00016712,2]
[363826137,1748890241387,-440.0,0.00016712,2]
[363826138,1748890241397,-392.08601506,0.00016712,2]
[363826139,1748890241408,-420.0,0.00016712,2]
[363826140,1748890241417,-426.95562546,0.00016712,2]
[363826141,1748890241427,-420.0,0.00016712,2]
[363826142,1748890241437,-440.0,0.00016712,2]
[363826143,1748890241446,-440.0,0.00016712,2]
[363826144,1748890241455,-420.0,0.00016712,2]
[363826145,1748890241464,-259.09772759,0.00016712,2]
[363826146,1748890241474,-420.0,0.00016712,2]
[363826147,1748890241484,-420.0,0.00016712,2]
[363826148,1748890241493,-440.0,0.00016712,2]
[363826149,1748890241503,-420.0,0.00016712,2]
[363826150,1748890241512,-440.0,0.00016712,2]
[363826151,1748890241521,-440.0,0.00016712,2]
[363826152,1748890241531,-440.0,0.00016712,2]
[363826153,1748890241650,-206.09601994,0.00016712,2]
[363826154,1748890241661,-440.0,0.00016712,2]
[363826156,1748890241670,-420.0,0.00016712,2]
[363826157,1748890241680,-420.0,0.00016712,2]
[363826158,1748890241690,-420.0,0.00016712,2]
[363826159,1748890241701,-440.0,0.00016712,2]
[363826160,1748890241714,-440.0,0.00016712,2]
[363826161,1748890241725,-632.38,0.00016712,2]
[363826162,1748890241735,-685.19,0.00016712,2]
[363826163,1748890241746,-440.0,0.00016712,2]
[363826164,1748890241756,-440.0,0.00016712,2]
[363826165,1748890241766,-440.0,0.00016712,2]
[363826166,1748890241776,-440.0,0.00016712,2]
[363826167,1748890241787,-306.5559065,0.00016712,2]
[363826168,1748890241796,-440.0,0.00016712,2]
[363826169,1748890241807,-440.0,0.00016712,2]
[363826170,1748890241817,-440.0,0.00016712,2]
[363826171,1748890241827,-440.0,0.00016712,2]
[363826172,1748890241836,-153.99,0.00016712,2]
[363826173,1748890241846,-440.0,0.00016712,2]
[363826174,1748890241856,-420.0,0.00016712,2]
[363826175,1748890241865,-410.0,0.00016712,2]
[363826176,1748890241875,-440.0,0.00016712,2]
[363826177,1748890241884,-420.0,0.00016712,2]
[363826178,1748890241894,-440.0,0.00016712,2]
[363826179,1748890241904,-440.0,0.00016712,2]
[363826180,1748890241914,-420.0,0.00016712,2]
[363826181,1748890241924,-440.0,0.00016712,2]
[363826182,1748890241934,-420.0,0.00016712,2]
[363826183,1748890241944,-420.0,0.00016712,2]
[363826184,1748890241953,-440.0,0.00016712,2]
[363826185,1748890241963,-420.0,0.00016712,2]
[363826186,1748890241974,-440.0,0.00016712,2]
[363826187,1748890241984,-420.0,0.00016712,2]
[363826188,1748890241993,-440.0,0.00016712,2]
[363826189,1748890242003,-420.0,0.00016712,2]
[363826190,1748890242013,-440.0,0.00016712,2]
[363826191,1748890242022,-380.0,0.00016712,2]
[363826192,1748890242032,-440.0,0.00016712,2]
[363826193,1748890242043,-460.0,0.00016712,2]
[363826194,1748890242052,-440.0,0.00016712,2]
[363826195,1748890242062,-391.81743629,0.00016712,2]
[363826196,1748890242071,-420.0,0.00016712,2]
[363826197,1748890242081,-530.0,0.00016712,2]
[363826198,1748890242092,-440.0,0.00016712,2]
[363826199,1748890242103,-397.54253287,0.00016712,2]
[363826200,1748890242113,-445.94947969,0.00016712,2]
[363826201,1748890242123,-420.0,0.00016712,2]
[363826202,1748890242135,-440.0,0.00016712,2]
[363826203,1748890242145,-420.0,0.00016712,2]
[363826204,1748890242154,-420.0,0.00016712,2]
[363826205,1748890242164,-440.0,0.00016712,2]
[363826206,1748890242174,-456.31,0.00016712,2]
[363826207,1748890242183,-360.0,0.00016712,2]
[363826208,1748890242193,-440.0,0.00016712,2]
[363826209,1748890242202,-440.0,0.00016712,2]
[363826210,1748890242212,-420.0,0.00016712,2]
[363826211,1748890242222,-420.0,0.00016712,2]
[363826212,1748890242232,-291.08793765,0.00016712,2]
[363826213,1748890242242,-420.0,0.00016712,2]
[363826214,1748890242251,-467.13909201,0.00016712,2]
[363826215,1748890242261,-420.0,0.00016712,2]
[363826216,1748890242271,-440.0,0.00016712,2]
[363826217,1748890242281,-440.0,0.00016712,2]
[363826218,1748890242291,-440.0,0.00016712,2]
[363826219,1748890242301,-433.12860954,0.00016712,2]
[363826220,1748890242311,-420.0,0.00016712,2]
[363826221,1748890242320,-440.0,0.00016712,2]
[363826222,1748890242330,-420.0,0.00016712,2]
[363826223,1748890242341,-420.0,0.00016712,2]
[363826224,1748890242351,-440.0,0.00016712,2]
[363826225,1748890242361,-420.0,0.00016712,2]
[363826226,1748890242370,-440.0,0.00016712,2]
[363826227,1748890242383,-477.2304896,0.00016712,2]
[363826228,1748890242393,-420.0,0.00016712,2]
[363826229,1748890242403,-440.0,0.00016712,2]
[363826230,1748890242413,-420.0,0.00016712,2]
[363826231,1748890242424,-440.0,0.00016712,2]
[363826232,1748890242434,-440.0,0.00016712,2]
[363826233,1748890242443,-353.97759682,0.00016712,2]
[363826234,1748890242452,-440.0,0.00016712,2]
[363826235,1748890242462,-420.0,0.00016712,2]
[363826236,1748890242471,-440.0,0.00016712,2]
[363826237,1748890242482,-420.0,0.00016712,2]
[363826238,1748890242491,-420.0,0.00016712,2]
[363826239,1748890242501,-420.0,0.00016712,2]
[363826240,1748890242511,-308.26170271,0.00016712,2]
[363826241,1748890242521,-449.36,0.00016712,2]
[363826242,1748890242530,-420.0,0.00016712,2]
[363826243,1748890242541,-440.0,0.00016712,2]
[363826244,1748890242550,-420.0,0.00016712,2]
[363826245,1748890242560,-420.0,0.00016712,2]
[363826246,1748890242569,-420.0,0.00016712,2]
[363826247,1748890242579,-420.0,0.00016712,2]
[363826248,1748890242588,-303.94304848,0.00016712,2]
[363826249,1748890242598,-420.0,0.00016712,2]
[363826250,1748890242608,-420.0,0.00016712,2]
[363826252,1748890242617,-420.0,0.00016712,2]
[363826253,1748890242626,-482.96218221,0.00016712,2]
[363826254,1748890242636,-428.67606443,0.00016712,2]
[363826255,1748890242645,-608.92,0.00016712,2]
[363826256,1748890242655,-420.0,0.00016712,2]
[363826257,1748890242665,-480.0,0.00016712,2]
[363826259,1748890242675,-304.34219222,0.00016712,2]
[363826260,1748890242685,-440.0,0.00016712,2]
[363826261,1748890242695,-440.0,0.00016712,2]
[363826262,1748890242705,-420.0,0.00016712,2]
[363826263,1748890242717,-420.0,0.00016712,2]
[363826264,1748890242727,-420.0,0.00016712,2]
[363826265,1748890242737,-420.0,0.00016712,2]
[363826266,1748890242746,-579.48,0.00016712,2]
[363826268,1748890242756,-420.0,0.00016712,2]
[363826269,1748890242766,-420.0,0.00016712,2]
[363826270,1748890242776,-440.0,0.00016712,2]
[363826271,1748890242788,-440.0,0.00016712,2]
[363826272,1748890242798,-528.51,0.00016712,2]
[363826274,1748890242808,-420.0,0.00016712,2]
[363826275,1748890242818,-1196.61,0.00016712,2]
[363826276,1748890242828,-420.0,0.00016712,2]
[363826277,1748890242838,-420.0,0.00016712,2]
[363826278,1748890242848,-420.0,0.00016712,2]
[363826280,1748890242858,-420.0,0.00016712,2]
[363826281,1748890242867,-241.44274117,0.00016712,2]
[363826282,1748890242876,-1374.43,0.00016712,2]
[363826283,1748890242886,-156.88334488,0.00016712,2]
[363826284,1748890242896,-510.1726966,0.00016712,2]
[363826285,1748890242905,-420.0,0.00016712,2]
[363826286,1748890242914,-440.0,0.00016712,2]
[363826287,1748890242924,-420.0,0.00016712,2]
[363826289,1748890242933,-420.0,0.00016712,2]
[363826290,1748890242942,-440.0,0.00016712,2]
[363826292,1748890242951,-420.0,0.00016712,2]
[363826293,1748890242961,-420.0,0.00016712,2]
[363826295,1748890242971,-393.89349763,0.00016712,2]
[363826297,1748890242980,-420.0,0.00016712,2]
[363826298,1748890242990,-440.0,0.00016712,2]
[363826299,1748890242999,-420.0,0.00016712,2]
[363826300,1748890243010,-420.0,0.00016712,2]
[363826301,1748890243019,-298.7384804,0.00016712,2]
[363826302,1748890243029,-440.0,0.00016712,2]
[363826303,1748890243042,-440.0,0.00016712,2]
[363826304,1748890243052,-560.0,0.00016712,2]
[363826305,1748890243061,-420.0,0.00016712,2]
[363826306,1748890243070,-440.0,0.00016712,2]
[363826307,1748890243080,-248.64760731,0.00016712,2]
[363826308,1748890243090,-420.0,0.00016712,2]
[363826309,1748890243099,-440.0,0.00016712,2]
[363826310,1748890243110,-440.0,0.00016712,2]
[363826311,1748890243120,-444.98331165,0.00016986,2]
[363826312,1748890243130,-440.0,0.00016986,2]
[363826313,1748890243140,-410.0,0.00016986,2]
[363826314,1748890243151,-361.4099551,0.00016986,2]
[363826315,1748890243161,-440.0,0.00016986,2]
[363826316,1748890243171,-410.0,0.00016986,2]
[363826317,1748890243181,-410.0,0.00016986,2]
[363826318,1748890243191,-410.0,0.00016986,2]
[363826319,1748890243202,-410.0,0.00016986,2]
[363826320,1748890243212,-410.0,0.00016986,2]
[363826321,1748890243222,-410.0,0.00016986,2]
[363826322,1748890243232,-410.0,0.00016986,2]
[363826323,1748890243242,-440.0,0.00016986,2]
[363826324,1748890243251,-410.0,0.00016986,2]
[363826325,1748890243262,-410.0,0.00016986,2]
[363826326,1748890243271,-440.0,0.00016986,2]
[363826327,1748890243280,-410.0,0.00016986,2]
[363826328,1748890243291,-410.0,0.00016986,2]
[363826329,1748890243301,-410.0,0.00016986,2]
[363826330,1748890243311,-410.0,0.00016986,2]
[363826331,1748890243322,-440.0,0.00016986,2]
[363826332,1748890243331,-410.0,0.00016986,2]
[363826333,1748890243341,-410.0,0.00016986,2]
[363826334,1748890243350,-632.38,0.00016986,2]
[363826336,1748890243360,-685.19,0.00016986,2]
[363826337,1748890243369,-440.0,0.00016986,2]
[363826338,1748890243379,-440.0,0.00016986,2]
[363826339,1748890243389,-440.0,0.00016986,2]
[363826340,1748890243399,-440.0,0.00016986,2]
[363826341,1748890243408,-440.0,0.00016986,2]
[363826342,1748890243418,-440.0,0.00016986,2]
[363826343,1748890243428,-440.0,0.00016986,2]
[363826344,1748890243438,-219.42145032,0.00016986,2]
[363826345,1748890243447,-440.0,0.00016986,2]
[363826346,1748890243457,-440.0,0.00016986,2]
[363826347,1748890243466,-440.0,0.00016986,2]
[363826348,1748890243476,-440.0,0.00016986,2]
[363826349,1748890243485,-440.0,0.00016986,2]
[363826350,1748890243494,-440.0,0.00016986,2]
[363826351,1748890243504,-410.0,0.00016986,2]
[363826352,1748890243514,-440.0,0.00016986,2]
[363826353,1748890243524,-440.0,0.00016986,2]
[363826354,1748890243533,-440.0,0.00016986,2]
[363826355,1748890243543,-440.0,0.00016986,2]
[363826356,1748890243552,-440.0,0.00016986,2]
[363826357,1748890243562,-440.0,0.00016986,2]
[363826358,1748890243571,-465.9860981,0.00016986,2]
[363826359,1748890243581,-456.31,0.00016986,2]
[363826360,1748890243590,-440.0,0.00016986,2]
[363826361,1748890243599,-440.0,0.00016986,2]
[363826362,1748890243609,-440.0,0.00016986,2]
[363826363,1748890243619,-410.0,0.00016986,2]
[363826364,1748890243628,-440.0,0.00016986,2]
[363826365,1748890243637,-410.0,0.00016986,2]
[363826366,1748890243646,-440.0,0.00016986,2]
[363826367,1748890243655,-440.0,0.00016986,2]
[363826368,1748890243665,-440.0,0.00016986,2]
[363826369,1748890243675,-440.0,0.00016986,2]
[363826370,1748890243684,-440.0,0.00016986,2]
[363826371,1748890243694,-440.0,0.00016986,2]
[363826372,1748890243704,-440.0,0.00016986,2]
[363826373,1748890243718,-449.36,0.00016986,2]
[363826374,1748890243727,-440.0,0.00016986,2]
[363826375,1748890243737,-608.92,0.00016986,2]
[363826376,1748890243747,-440.0,0.00016986,2]
[363826377,1748890243756,-440.0,0.00016986,2]
[363826378,1748890243766,-579.48,0.00016986,2]
[363826379,1748890243775,-410.0,0.00016986,2]
[363826380,1748890243784,-410.0,0.00016986,2]
[363826381,1748890243795,-528.51,0.00016986,2]
[363826382,1748890243805,-1196.61,0.00016986,2]
[363826383,1748890243814,-1374.43,0.00016986,2]
[363826384,1748890243823,-440.0,0.00016986,2]
[363826385,1748890243832,-180.65227927,0.00016986,2]
[363826386,1748890243842,-440.0,0.00016986,2]
[363826387,1748890243851,-440.0,0.00016986,2]
[363826388,1748890243860,-440.0,0.00016986,2]
[363826390,1748890243870,-440.0,0.00016986,2]
[363826392,1748890243881,-440.0,0.00016986,2]
[363826394,1748890243890,-440.0,0.00016986,2]
[363826396,1748890243900,-1090.8042724,0.000172,2]
[363826398,1748890243909,-1090.80427218,0.000172,2]
[363826400,1748890243919,-440.0,0.0001726,2]
[363826402,1748890243928,-378.35494578,0.0001726,2]
[363826404,1748890243937,-440.0,0.0001726,2]
[363826406,1748890243947,-440.0,0.0001726,2]
[363826408,1748890243957,-440.0,0.0001726,2]
[363826410,1748890243966,-632.38,0.0001726,2]
[363826412,1748890243975,-685.19,0.0001726,2]
[363826414,1748890243985,-400.0,0.0001726,2]
[363826416,1748890243995,-440.0,0.0001726,2]
[363826418,1748890244004,-440.0,0.0001726,2]
[363826420,1748890244014,-440.0,0.0001726,2]
[363826422,1748890244023,-400.0,0.0001726,2]
[363826424,1748890244033,-400.0,0.0001726,2]
[363826426,1748890244043,-440.0,0.0001726,2]
[363826428,1748890244052,-400.0,0.0001726,2]
[363826430,1748890244062,-400.0,0.0001726,2]
[363826432,1748890244071,-400.0,0.0001726,2]
[363826435,1748890244081,-440.0,0.0001726,2]
[363826437,1748890244091,-440.0,0.0001726,2]
[363826439,1748890244101,-440.0,0.0001726,2]
[363826441,1748890244110,-440.0,0.0001726,2]
[363826443,1748890244121,-400.0,0.0001726,2]
[363826445,1748890244130,-400.0,0.0001726,2]
[363826447,1748890244139,-400.0,0.0001726,2]
[363826448,1748890244149,-440.0,0.0001726,2]
[363826449,1748890244158,-400.0,0.0001726,2]
[363826450,1748890244167,-456.31,0.0001726,2]
[363826452,1748890244279,-400.0,0.0001726,2]
[363826453,1748890244290,-400.0,0.0001726,2]
[363826454,1748890244299,-440.0,0.0001726,2]
[363826455,1748890244309,-400.0,0.0001726,2]
[363826456,1748890244319,-400.0,0.0001726,2]
[363826457,1748890244328,-263.09013383,0.0001726,2]
[363826458,1748890244338,-400.0,0.0001726,2]
[363826459,1748890244350,-400.0,0.0001726,2]
[363826460,1748890244361,-440.0,0.0001726,2]
[363826461,1748890244371,-400.0,0.0001726,2]
[363826462,1748890244381,-440.0,0.0001726,2]
[363826463,1748890244391,-449.36,0.0001726,2]
[363826464,1748890244401,-440.0,0.0001726,2]
[363826465,1748890244411,-608.92,0.0001726,2]
[363826466,1748890244422,-400.0,0.0001726,2]
[363826467,1748890244432,-400.0,0.0001726,2]
[363826468,1748890244442,-579.48,0.0001726,2]
[363826469,1748890244452,-528.51,0.0001726,2]
[363826470,1748890244462,-1196.61,0.0001726,2]
[363826471,1748890244473,-1374.43,0.0001726,2]
[363826472,1748890244482,-440.0,0.0001726,2]
[363826473,1748890244492,-440.0,0.0001726,2]
[363826474,1748890244501,-400.0,0.0001726,2]
[363826475,1748890244511,-400.0,0.0001726,2]
[363826477,1748890244520,-400.0,0.0001726,2]
[363826478,1748890244529,-400.0,0.0001726,2]
[363826479,1748890244539,-400.0,0.0001726,2]
[363826480,1748890244548,-1090.80427218,0.00017383,2]
[363826481,1748890244558,-1619.2180318,0.0001749,2]
[363826482,1748890244567,-440.0,0.00017534,2]
[363826483,1748890244577,-440.0,0.00017534,2]
[363826484,1748890244586,-440.0,0.00017534,2]
[363826485,1748890244596,-440.0,0.00017534,2]
[363826486,1748890244605,-632.38,0.00017534,2]
[363826487,1748890244615,-685.19,0.00017534,2]
[363826488,1748890244625,-314.84,0.00017534,2]
[363826489,1748890244634,-440.0,0.00017534,2]
[363826490,1748890244644,-440.0,0.00017534,2]
[363826491,1748890244654,-486.45,0.00017534,2]
[363826492,1748890244665,-440.0,0.00017534,2]
[363826493,1748890244675,-434.35,0.00017534,2]
[363826494,1748890244684,-440.0,0.00017534,2]
[363826495,1748890244694,-440.0,0.00017534,2]
[363826496,1748890244704,-470.0,0.00017534,2]
[363826497,1748890244714,-456.31,0.00017534,2]
[363826498,1748890244726,-440.0,0.00017534,2]
[363826499,1748890244737,-440.0,0.00017534,2]
[363826500,1748890244748,-440.0,0.00017534,2]
[363826501,1748890244760,-449.36,0.00017534,2]
[363826502,1748890244770,-440.0,0.00017534,2]
[363826503,1748890244779,-608.92,0.00017534,2]
[363826504,1748890244790,-579.48,0.00017534,2]
[363826505,1748890244799,-528.51,0.00017534,2]
[363826506,1748890244810,-1196.61,0.00017534,2]
[363826507,1748890244821,-1374.43,0.00017534,2]
[363826508,1748890244831,-484.85,0.00017534,2]
[363826509,1748890244842,-440.0,0.00017534,2]
[363826510,1748890244853,-183.006591,0.00017612,2]
[363826511,1748890244862,-1090.80427218,0.00017624,2]
[363826512,1748890244872,-164.31465426,0.00017636,2]
[363826513,1748890244882,-370.58054704,0.00017729,2]
[363826514,1748890244892,-440.0,0.00017808,2]
[363826515,1748890244902,-440.0,0.00017808,2]
[363826516,1748890244912,-440.0,0.00017808,2]
[363826517,1748890244922,-440.0,0.00017808,2]
[363826518,1748890244931,-632.38,0.00017808,2]
[363826519,1748890244941,-685.19,0.00017808,2]
[363826520,1748890244951,-440.0,0.00017808,2]
[363826521,1748890244961,-331.65,0.00017808,2]
[363826522,1748890244971,-440.0,0.00017808,2]
[363826523,1748890244981,-440.0,0.00017808,2]
[363826524,1748890244992,-440.0,0.00017808,2]
[363826525,1748890245002,-456.31,0.00017808,2]
[363826526,1748890245012,-440.0,0.00017808,2]
[363826527,1748890245022,-440.0,0.00017808,2]
[363826528,1748890245032,-440.0,0.00017808,2]
[363826529,1748890245042,-449.36,0.00017808,2]
[363826530,1748890245052,-440.0,0.00017808,2]
[363826531,1748890245062,-608.92,0.00017808,2]
[363826532,1748890245071,-579.48,0.00017808,2]
[363826533,1748890245081,-528.51,0.00017808,2]
[363826534,1748890245090,-1196.61,0.00017808,2]
[363826535,1748890245100,-1374.43,0.00017808,2]
[363826536,1748890245110,-440.0,0.00017808,2]
[363826537,1748890245119,-1090.80427218,0.00017866,2]
[363826538,1748890245128,-420.0,0.00017962,2]
[363826539,1748890245138,-440.0,0.00018082,2]
[363826540,1748890245148,-440.0,0.00018082,2]
[363826541,1748890245158,-440.0,0.00018082,2]
[363826542,1748890245168,-440.0,0.00018082,2]
[363826543,1748890245177,-632.38,0.00018082,2]
[363826544,1748890245187,-685.19,0.00018082,2]
[363826545,1748890245197,-440.0,0.00018082,2]
[363826546,1748890245207,-440.0,0.00018082,2]
[363826547,1748890245218,-440.0,0.00018082,2]
[363826548,1748890245228,-182.25,0.00018082,2]
[363826549,1748890245239,-456.31,0.00018082,2]
[363826550,1748890245249,-440.0,0.00018082,2]
[363826551,1748890245259,-440.0,0.00018082,2]
[363826552,1748890245269,-440.0,0.00018082,2]
[363826553,1748890245281,-449.36,0.00018082,2]
[363826554,1748890245293,-440.0,0.00018082,2]
[363826555,1748890245303,-608.92,0.00018082,2]
[363826556,1748890245314,-579.48,0.00018082,2]
[363826557,1748890245324,-528.51,0.00018082,2]
[363826558,1748890245334,-1196.61,0.00018082,2]
[363826559,1748890245344,-1374.43,0.00018082,2]
[363826560,1748890245354,-440.0,0.00018082,2]
[363826561,1748890245363,-1090.80427218,0.00018107,2]
[363826562,1748890245373,-990.52,0.00018126,2]
[363826563,1748890245384,-163.8376925,0.00018214,2]
[363826564,1748890245393,-1090.80427218,0.00018348,2]
[363826565,1748890245403,-370.27,0.00018356,2]
[363826566,1748890245413,-440.0,0.00018356,2]
[363826567,1748890245423,-270.0,0.00018356,2]
[363826568,1748890245434,-454.56606412,0.00018356,2]
[363826569,1748890245444,-632.38,0.00018356,2]
[363826570,1748890245455,-685.19,0.00018356,2]
[363826571,1748890245464,-440.0,0.00018356,2]
[363826572,1748890245474,-440.0,0.00018356,2]
[363826573,1748890245484,-440.0,0.00018356,2]
[363826574,1748890245494,-456.31,0.00018356,2]
[363826575,1748890245504,-440.0,0.00018356,2]
[363826576,1748890245514,-440.0,0.00018356,2]
[363826577,1748890245524,-440.0,0.00018356,2]
[363826578,1748890245534,-449.36,0.00018356,2]
[363826579,1748890245545,-440.0,0.00018356,2]
[363826580,1748890245554,-608.92,0.00018356,2]
[363826581,1748890245564,-579.48,0.00018356,2]
[363826582,1748890245574,-528.51,0.00018356,2]
[363826583,1748890245584,-1196.61,0.00018356,2]
[363826584,1748890245594,-1374.43,0.00018356,2]
[363826586,1748890245604,-440.0,0.00018356,2]
[363826587,1748890245615,-1090.80427218,0.0001859,2]
[363826588,1748890245624,-440.0,0.0001863,2]
[363826589,1748890245634,-632.38,0.0001863,2]
[363826590,1748890245644,-685.19,0.0001863,2]
[363826591,1748890245654,-440.0,0.0001863,2]
[363826592,1748890245665,-440.0,0.0001863,2]
[363826593,1748890245675,-440.0,0.0001863,2]
[363826594,1748890245686,-456.31,0.0001863,2]
[363826595,1748890245697,-440.0,0.0001863,2]
[363826597,1748890245707,-440.0,0.0001863,2]
[363826599,1748890245720,-449.36,0.0001863,2]
[363826600,1748890245730,-440.0,0.0001863,2]
[363826601,1748890245740,-608.92,0.0001863,2]
[363826602,1748890245750,-579.48,0.0001863,2]
[363826603,1748890245760,-528.51,0.0001863,2]
[363826604,1748890245769,-1196.61,0.0001863,2]
[363826605,1748890245779,-1374.43,0.0001863,2]
[363826606,1748890245789,-440.0,0.0001863,2]
[363826607,1748890245800,-1500.0,0.0001867,2]
[363826608,1748890245810,-212.83419937,0.00018698,2]
[363826609,1748890245820,-160.0,0.00018698,2]
[363826610,1748890245830,-160.0,0.00018699,2]
[363826611,1748890245839,-229.39799938,0.00018699,2]
[363826612,1748890245848,-160.0,0.00018699,2]
[363826613,1748890245858,-842.5625,0.00018699,2]
[363826614,1748890245868,-423.56953423,0.00018699,2]
[363826615,1748890245878,-500.0,0.00018825,2]
[363826616,1748890245888,-399.53640872,0.00018825,2]
[363826617,1748890245897,-1090.80427218,0.00018831,2]
[363826618,1748890245907,-440.0,0.00018904,2]
[363826619,1748890245917,-632.38,0.00018904,2]
[363826620,1748890245927,-685.19,0.00018904,2]
[363826621,1748890245936,-440.0,0.00018904,2]
[363826622,1748890245946,-440.0,0.00018904,2]
[363826623,1748890245956,-440.0,0.00018904,2]
[363826624,1748890245967,-456.31,0.00018904,2]
[363826625,1748890245977,-440.0,0.00018904,2]
[363826626,1748890245987,-440.0,0.00018904,2]
[363826627,1748890245996,-449.36,0.00018904,2]